lending/lending_fUSD_20260209
["ID","MTS","AMOUNT","RATE_DAILY","PERIOD"]
[404829482,1770604240558,-240.32709851,0.00042236,2]
[404829483,1770604240568,-168.0,0.00042424,2]
[404829484,1770604240578,-5000.0,0.00042466,120]
[404829485,1770604240587,-2164.13072908,0.000425,120]
[404829486,1770604240597,-157.19768788,0.000425,120]
[404829487,1770604240606,-154.75,0.00042534,2]
[404829488,1770604240616,-800.0,0.0004274,7]
[404829489,1770604240626,-15165.49423038,0.000428,7]
[404829490,1770604240635,-1000.0,0.000428,120]
[404829491,1770604240644,-1876.99,0.00042842,2]
[404829492,1770604240655,-259.57383222,0.000429,30]
[404829493,1770604240664,-14176.57,0.00042973,2]
[404829494,1770604240674,-150.0,0.00043,120]
[404829495,1770604240683,-240.75130676,0.00043,120]
[404829496,1770604240692,-48974.83269297,0.00043,2]
[404829497,1770604240702,-162.46228869,0.00043,30]
[404829498,1770604240712,-695.18135714,0.00043,120]
[404829499,1770604240721,-152.0,0.00043,120]
[404829500,1770604240731,-2292.93388928,0.00043077,2]
[404829501,1770604240740,-168.0,0.00043124,2]
[404829502,1770604240749,-1521.40464906,0.0004313,30]
[404829503,1770604240758,-168.0,0.00043175,2]
[404829504,1770604240768,-8419.51515041,0.0004321,120]
[404829505,1770604240778,-756.862972,0.00043221,30]
[404829506,1770604240787,-2000.0,0.000433,2]
[404829507,1770604240796,-530.22730396,0.000434,30]
[404829508,1770604240806,-3800.0,0.000435,15]
[404829509,1770604240816,-8109.24,0.000435,2]
[404829510,1770604240825,-240.32709851,0.00043505,2]
[404829511,1770604240836,-370.0,0.00043589,120]
[404829512,1770604240847,-3800.0,0.000436,15]
[404829513,1770604240857,-616.84,0.00043679,2]
[404829514,1770604240867,-316.68272132,0.000437,120]
[404829515,1770604240877,-3800.0,0.000437,15]
[404829516,1770604240889,-500.0,0.00043773,10]
[404829517,1770604240900,-500.0,0.00043773,10]
[404829518,1770604240911,-237.39446606,0.000438,120]
[404829519,1770604240921,-4300.0,0.000438,15]
[404829520,1770604240931,-462.16,0.000438,120]
[404829521,1770604240942,-1999.0,0.00043835,120]
[404829522,1770604240952,-1999.0,0.00043854,30]
[404829523,1770604240962,-150.0,0.00043928,120]
[404829524,1770604240972,-920.82030181,0.00043946,120]
[404829525,1770604240982,-168.0,0.00043966,2]
[404829526,1770604240991,-1089.27412783,0.00043987,120]
[404829527,1770604241002,-677.62330739,0.00044,120]
[404829528,1770604241012,-247.31803698,0.00044,120]
[404829529,1770604241022,-13726.50808153,0.00044,4]
[404829530,1770604241032,-152.0,0.00044,120]
[404829531,1770604241042,-196.0149842,0.000441,30]
[404829532,1770604241052,-200.99075757,0.00044109,120]
[404829533,1770604241062,-500.0,0.00044109,120]
[404829534,1770604241071,-500.0,0.00044109,120]
[404829535,1770604241081,-500.0,0.00044109,120]
[404829536,1770604241091,-500.0,0.00044109,120]
[404829537,1770604241102,-500.0,0.00044109,120]
[404829538,1770604241112,-500.0,0.00044109,120]
[404829539,1770604241122,-500.0,0.00044109,120]
[404829540,1770604241132,-500.0,0.00044109,120]
[404829541,1770604241142,-500.0,0.00044109,120]
[404829542,1770604241153,-500.0,0.00044109,120]
[404829543,1770604241164,-500.0,0.00044109,120]
[404829544,1770604241175,-500.0,0.00044109,120]
[404829545,1770604241186,-500.0,0.00044109,120]
[404829546,1770604241195,-500.0,0.00044109,120]
[404829547,1770604241206,-500.0,0.00044109,120]
[404829548,1770604241217,-500.0,0.00044109,120]
[404829549,1770604241226,-500.0,0.00044109,120]
[404829550,1770604241237,-500.0,0.00044109,120]
[404829551,1770604241248,-500.0,0.00044109,120]
[404829552,1770604241259,-500.0,0.00044109,120]
[404829553,1770604241270,-500.0,0.00044109,120]
[404829554,1770604241281,-500.0,0.00044109,120]
[404829555,1770604241292,-500.0,0.00044109,120]
[404829556,1770604241302,-316.02714742,0.00044109,120]
[404829557,1770604241312,-1000.0,0.0004411,30]
[404829558,1770604241324,-150.0,0.00044141,60]
[404829559,1770604241336,-150.0,0.00044141,2]
[404829560,1770604241347,-150.0,0.00044196,60]
[404829561,1770604241358,-3000.0,0.000442,7]
[404829562,1770604241369,-168.0,0.00044204,7]
[404829563,1770604241381,-253.69312086,0.00044251,60]
[404829564,1770604241391,-205.02,0.00044279,2]
[404829565,1770604241402,-4456.0,0.00044302,7]
[404829566,1770604241412,-1000.0,0.00044321,10]
[404829567,1770604241421,-1000.0,0.00044321,10]
[404829568,1770604241434,-2136.93217286,0.00044341,2]
[404829569,1770604241443,-3566.04625219,0.00044341,28]
[404829570,1770604241453,-500.0,0.00044356,120]
[404829571,1770604241463,-500.0,0.00044356,30]
[404829572,1770604241474,-538.95141637,0.00044356,120]
[404829573,1770604241484,-500.0,0.00044356,120]
[404829574,1770604241495,-488.0,0.00044356,120]
[404829575,1770604241505,-516.91479493,0.00044356,120]
[404829576,1770604241516,-500.0,0.00044356,120]
[404829577,1770604241526,-513.79659184,0.00044356,120]
[404829578,1770604241537,-500.0,0.00044356,120]
[404829579,1770604241549,-520.02669912,0.00044356,120]
[404829580,1770604241559,-543.03757559,0.00044356,120]
[404829581,1770604241569,-522.06751691,0.00044356,120]
[404829582,1770604241581,-556.59140331,0.00044356,120]
[404829583,1770604241592,-509.10136495,0.00044356,120]
[404829584,1770604241602,-522.13261668,0.00044356,120]
[404829585,1770604241613,-532.88339383,0.00044356,120]
[404829586,1770604241624,-518.04526449,0.00044356,120]
[404829587,1770604241634,-500.0,0.00044356,120]
[404829588,1770604241644,-500.0,0.00044356,120]
[404829589,1770604241654,-512.35847391,0.00044356,120]
[404829590,1770604241665,-511.76632699,0.00044356,120]
[404829591,1770604241676,-500.0,0.00044356,120]
[404829592,1770604241686,-500.0,0.00044356,120]
[404829593,1770604241696,-500.0,0.00044356,120]
[404829594,1770604241707,-500.0,0.00044356,120]
[404829595,1770604241716,-503.19999691,0.00044356,120]
[404829596,1770604241726,-500.0,0.00044356,120]
[404829597,1770604241735,-500.0,0.00044356,120]
[404829598,1770604241744,-500.0,0.00044356,120]
[404829599,1770604241753,-500.0,0.00044356,120]
[404829600,1770604241763,-500.0,0.00044356,120]
[404829601,1770604241773,-500.0,0.00044356,120]
[404829602,1770604241782,-533.7172643,0.00044356,120]
[404829603,1770604241792,-233.80409016,0.00044356,120]
[404829604,1770604241801,-500.0,0.00044356,120]
[404829605,1770604241812,-457.54207596,0.00044356,120]
[404829606,1770604241822,-500.0,0.00044356,120]
[404829607,1770604241831,-502.60747472,0.00044356,120]
[404829608,1770604241841,-500.0,0.00044356,120]
[404829609,1770604241850,-503.96518755,0.00044356,120]
[404829610,1770604241859,-500.0,0.00044356,120]
[404829611,1770604241869,-514.11506779,0.00044356,120]
[404829612,1770604241878,-516.48909441,0.00044356,120]
[404829613,1770604241888,-503.41025338,0.00044356,120]
[404829614,1770604241897,-625.34239314,0.00044356,120]
[404829615,1770604241907,-500.0,0.00044356,120]
[404829616,1770604241916,-500.0,0.00044356,120]
[404829617,1770604241926,-298.88778921,0.00044356,120]
[404829618,1770604241937,-500.0,0.00044356,120]
[404829619,1770604241946,-159.1523081,0.00044356,120]
[404829620,1770604241957,-500.0,0.00044356,120]
[404829621,1770604241966,-500.0,0.00044356,120]
[404829622,1770604241975,-535.62649329,0.00044356,120]
[404829623,1770604241986,-536.66719418,0.00044356,120]
[404829624,1770604241996,-500.0,0.00044356,120]
[404829625,1770604242007,-500.0,0.00044356,120]
[404829626,1770604242018,-500.0,0.00044356,120]
[404829627,1770604242028,-500.0,0.00044356,120]
[404829628,1770604242037,-500.0,0.00044356,120]
[404829629,1770604242046,-500.0,0.00044356,120]
[404829630,1770604242058,-500.0,0.00044356,120]
[404829631,1770604242068,-500.0,0.00044356,120]
[404829632,1770604242077,-530.69989068,0.00044356,120]
[404829633,1770604242087,-500.0,0.00044356,120]
[404829634,1770604242096,-500.0,0.00044356,120]
[404829635,1770604242106,-500.0,0.00044356,120]
[404829636,1770604242115,-480.35,0.00044356,120]
[404829637,1770604242125,-529.33339525,0.00044356,120]
[404829638,1770604242134,-500.0,0.00044356,120]
[404829639,1770604242143,-500.0,0.00044356,120]
[404829640,1770604242153,-500.0,0.00044356,120]
[404829641,1770604242162,-500.0,0.00044356,120]
[404829642,1770604242171,-500.0,0.00044356,120]
[404829643,1770604242180,-500.0,0.00044356,120]
[404829644,1770604242189,-500.0,0.00044356,120]
[404829645,1770604242198,-500.0,0.00044356,120]
[404829646,1770604242207,-500.0,0.00044356,120]
[404829647,1770604242217,-500.0,0.00044356,120]
[404829648,1770604242226,-500.0,0.00044356,120]
[404829649,1770604242236,-500.0,0.00044356,120]
[404829650,1770604242247,-500.0,0.00044356,120]
[404829651,1770604242257,-500.0,0.00044356,120]
[404829652,1770604242267,-500.0,0.00044356,120]
[404829653,1770604242277,-500.0,0.00044356,120]
[404829654,1770604242289,-185.76478673,0.00044356,120]
[404829655,1770604242301,-507.09927766,0.00044356,120]
[404829656,1770604242313,-500.0,0.00044356,120]
[404829657,1770604242324,-560.73552902,0.00044356,120]
[404829658,1770604242334,-500.0,0.00044356,120]
[404829659,1770604242346,-500.0,0.00044356,120]
[404829660,1770604242359,-538.85,0.00044356,120]
[404829661,1770604242370,-500.0,0.00044356,120]
[404829662,1770604242381,-518.9899617,0.00044356,120]
[404829663,1770604242392,-515.31878584,0.00044356,120]
[404829664,1770604242403,-500.0,0.00044356,120]
[404829665,1770604242414,-500.0,0.00044356,120]
[404829666,1770604242426,-500.0,0.00044356,120]
[404829667,1770604242436,-500.0,0.00044356,120]
[404829668,1770604242446,-512.38874694,0.00044356,120]
[404829669,1770604242457,-500.0,0.00044356,120]
[404829670,1770604242468,-340.87840016,0.00044356,120]
[404829671,1770604242479,-514.18838371,0.00044356,120]
[404829672,1770604242491,-500.0,0.00044356,120]
[404829673,1770604242504,-500.0,0.00044356,120]
[404829674,1770604242515,-500.0,0.00044356,120]
[404829675,1770604242527,-530.92279339,0.00044356,120]
[404829676,1770604242538,-500.0,0.00044356,120]
[404829677,1770604242550,-500.0,0.00044356,120]
[404829678,1770604242561,-241.12213845,0.00044356,120]
[404829679,1770604242571,-500.0,0.00044356,120]
[404829680,1770604242582,-500.0,0.00044356,120]
[404829681,1770604242595,-500.0,0.00044356,120]
[404829682,1770604242606,-500.0,0.00044356,120]
[404829683,1770604242618,-505.68117292,0.00044356,120]
[404829684,1770604242629,-500.0,0.00044356,120]
[404829685,1770604242640,-500.0,0.00044356,120]
[404829686,1770604242651,-500.0,0.00044356,120]
[404829687,1770604242661,-500.0,0.00044356,120]
[404829688,1770604242672,-507.54331272,0.00044356,120]
[404829689,1770604242682,-500.0,0.00044356,120]
[404829690,1770604242692,-522.04418988,0.00044356,120]
[404829691,1770604242702,-507.69271423,0.00044356,120]
[404829692,1770604242713,-507.12155609,0.00044356,120]
[404829693,1770604242723,-500.0,0.00044356,120]
[404829694,1770604242734,-530.07557932,0.00044356,120]
[404829695,1770604242744,-528.57173836,0.00044356,120]
[404829696,1770604242754,-507.02534816,0.00044356,120]
[404829697,1770604242764,-500.0,0.00044356,120]
[404829698,1770604242774,-500.0,0.00044356,120]
[404829699,1770604242784,-500.0,0.00044356,120]
[404829700,1770604242794,-500.0,0.00044356,120]
[404829701,1770604242804,-500.0,0.00044356,120]
[404829702,1770604242813,-501.59145176,0.00044356,120]
[404829703,1770604242823,-556.74196727,0.00044356,120]
[404829704,1770604242832,-500.0,0.00044356,120]
[404829705,1770604242842,-500.0,0.00044356,120]
[404829706,1770604242851,-263.19399825,0.00044356,120]
[404829707,1770604242861,-528.60430631,0.00044356,120]
[404829708,1770604242872,-500.0,0.00044356,120]
[404829709,1770604242882,-500.0,0.00044356,120]
[404829710,1770604242892,-527.54282064,0.00044356,120]
[404829711,1770604242902,-632.2,0.00044356,120]
[404829712,1770604242913,-509.7090087,0.00044356,120]
[404829713,1770604242923,-510.91617939,0.00044356,120]
[404829714,1770604242934,-500.0,0.00044356,120]
[404829715,1770604242945,-572.78948284,0.00044356,120]
[404829716,1770604242957,-500.0,0.00044356,120]
[404829717,1770604242967,-500.0,0.00044356,120]
[404829718,1770604242977,-505.62381506,0.00044356,120]
[404829719,1770604242987,-500.0,0.00044356,120]
[404829720,1770604242997,-500.0,0.00044356,120]
[404829721,1770604243008,-517.18647558,0.00044356,120]
[404829722,1770604243018,-500.0,0.00044356,120]
[404829723,1770604243028,-500.0,0.00044356,120]
[404829724,1770604243039,-527.80567152,0.00044356,120]
[404829725,1770604243049,-500.0,0.00044356,53]
[404829726,1770604243060,-520.40469439,0.00044356,120]
[404829727,1770604243071,-515.84166658,0.00044356,120]
[404829728,1770604243082,-516.78226562,0.00044356,120]
[404829729,1770604243092,-500.0,0.00044356,120]
[404829730,1770604243103,-524.90536579,0.00044356,120]
[404829731,1770604243114,-506.50227593,0.00044356,120]
[404829732,1770604243124,-500.0,0.00044356,120]
[404829733,1770604243136,-505.77819573,0.00044356,120]
[404829734,1770604243146,-500.0,0.00044356,120]
[404829735,1770604243157,-500.0,0.00044356,120]
[404829736,1770604243170,-500.0,0.00044356,120]
[404829737,1770604243182,-500.0,0.00044356,120]
[404829738,1770604243194,-500.0,0.00044356,120]
[404829739,1770604243204,-500.0,0.00044356,120]
[404829740,1770604243214,-534.84596114,0.00044356,120]
[404829741,1770604243224,-500.0,0.00044356,120]
[404829742,1770604243234,-500.0,0.00044356,120]
[404829743,1770604243244,-500.0,0.00044356,120]
[404829744,1770604243256,-500.0,0.00044356,120]
[404829745,1770604243268,-503.47761195,0.00044356,120]
[404829746,1770604243280,-522.33956718,0.00044356,120]
[404829747,1770604243291,-512.83982025,0.00044356,120]
[404829748,1770604243303,-538.08469107,0.00044356,120]
[404829749,1770604243315,-513.67385543,0.00044356,120]
[404829750,1770604243327,-500.0,0.00044356,120]
[404829751,1770604243339,-500.0,0.00044356,120]
[404829752,1770604243350,-501.63878215,0.00044356,120]
[404829753,1770604243360,-522.60765471,0.00044356,120]
[404829754,1770604243371,-519.24518289,0.00044356,120]
[404829755,1770604243383,-513.63788476,0.00044356,120]
[404829756,1770604243393,-510.96698902,0.00044356,120]
[404829757,1770604243406,-515.15378683,0.00044356,120]
[404829758,1770604243417,-500.0,0.00044356,120]
[404829759,1770604243432,-500.0,0.00044356,120]
[404829760,1770604243442,-500.0,0.00044356,120]
[404829761,1770604243453,-530.14613871,0.00044356,120]
[404829762,1770604243465,-500.0,0.00044356,120]
[404829763,1770604243476,-500.0,0.00044356,120]
[404829764,1770604243485,-500.0,0.00044356,120]
[404829765,1770604243497,-196.5016618,0.00044356,120]
[404829766,1770604243507,-511.05338571,0.00044356,120]
[404829767,1770604243519,-510.40381479,0.00044356,120]
[404829768,1770604243529,-500.0,0.00044356,120]
[404829769,1770604243541,-601.96868025,0.00044356,120]
[404829770,1770604243552,-500.0,0.00044356,120]
[404829771,1770604243564,-500.0,0.00044356,120]
[404829772,1770604243577,-500.0,0.00044356,120]
[404829773,1770604243588,-500.0,0.00044356,120]
[404829774,1770604243598,-500.0,0.00044356,120]
[404829775,1770604243611,-511.80534028,0.00044356,120]
[404829776,1770604243630,-526.423475,0.00044356,120]
[404829777,1770604243644,-500.0,0.00044356,120]
[404829778,1770604243655,-505.31612296,0.00044356,120]
[404829779,1770604243667,-500.0,0.00044356,120]
[404829780,1770604243676,-500.0,0.00044356,120]
[404829781,1770604243688,-500.0,0.00044356,120]
[404829782,1770604243698,-275.73391371,0.00044356,120]
[404829783,1770604243709,-500.0,0.00044356,120]
[404829784,1770604243719,-500.0,0.00044356,120]
[404829785,1770604243729,-500.0,0.00044356,120]
[404829786,1770604243741,-500.0,0.00044356,120]
[404829787,1770604243752,-500.0,0.00044356,120]
[404829788,1770604243764,-500.0,0.00044356,120]
[404829789,1770604243775,-500.0,0.00044356,120]
[404829790,1770604243787,-508.3390138,0.00044356,120]
[404829791,1770604243797,-518.01749482,0.00044356,120]
[404829792,1770604243807,-505.61319861,0.00044356,120]
[404829793,1770604243818,-500.0,0.00044356,120]
[404829794,1770604243828,-519.00116492,0.00044356,120]
[404829795,1770604243840,-500.0,0.00044356,120]
[404829796,1770604243849,-500.0,0.00044356,120]
[404829797,1770604243859,-500.0,0.00044356,120]
[404829798,1770604243868,-571.39304089,0.00044356,120]
[404829799,1770604243879,-500.0,0.00044356,120]
[404829800,1770604243889,-500.0,0.00044356,120]
[404829801,1770604243899,-500.06001294,0.00044356,120]
[404829802,1770604243909,-500.0,0.00044356,120]
[404829803,1770604243918,-547.92795325,0.00044356,120]
[404829804,1770604243928,-500.0,0.00044356,120]
[404829805,1770604243939,-500.0,0.00044356,120]
[404829806,1770604243950,-500.0,0.00044356,120]
[404829807,1770604243960,-500.0,0.00044356,120]
[404829808,1770604243971,-505.26461462,0.00044356,120]
[404829809,1770604243982,-503.02741498,0.00044356,120]
[404829810,1770604243994,-503.86781822,0.00044356,120]
[404829811,1770604244013,-509.83090145,0.00044356,120]
[404829812,1770604244023,-500.0,0.00044356,120]
[404829813,1770604244033,-500.0,0.00044356,120]
[404829814,1770604244043,-500.0,0.00044356,120]
[404829815,1770604244057,-500.0,0.00044356,120]
[404829816,1770604244077,-500.0,0.00044356,120]
[404829817,1770604244092,-500.0,0.00044356,120]
[404829818,1770604244101,-563.22307072,0.00044356,120]
[404829819,1770604244111,-500.0,0.00044356,120]
[404829820,1770604244121,-500.0,0.00044356,120]
[404829821,1770604244131,-557.65542629,0.00044356,120]
[404829822,1770604244140,-514.45150118,0.00044356,120]
[404829823,1770604244150,-500.0,0.00044356,120]
[404829824,1770604244159,-500.0,0.00044356,120]
[404829825,1770604244170,-500.0,0.00044356,120]
[404829826,1770604244180,-500.0,0.00044356,120]
[404829827,1770604244190,-500.0,0.00044356,120]
[404829828,1770604244201,-500.0,0.00044356,120]
[404829829,1770604244211,-500.0,0.00044356,120]
[404829830,1770604244221,-500.0,0.00044356,120]
[404829831,1770604244232,-298.29913932,0.00044356,120]
[404829832,1770604244242,-500.0,0.00044356,120]
[404829833,1770604244252,-511.84606497,0.00044356,120]
[404829834,1770604244262,-500.0,0.00044356,120]
[404829835,1770604244272,-500.0,0.00044356,120]
[404829836,1770604244282,-500.0,0.00044356,120]
[404829837,1770604244292,-508.98163581,0.00044356,120]
[404829838,1770604244302,-591.58828408,0.00044356,120]
[404829839,1770604244311,-500.0,0.00044356,120]
[404829840,1770604244321,-529.65210262,0.00044356,120]
[404829841,1770604244330,-500.0,0.00044356,120]
[404829842,1770604244340,-500.0,0.00044356,120]
[404829843,1770604244349,-500.0,0.00044356,120]
[404829844,1770604244359,-500.0,0.00044356,120]
[404829845,1770604244368,-500.0,0.00044356,120]
[404829846,1770604244378,-500.0,0.00044356,120]
[404829847,1770604244389,-500.0,0.00044356,120]
[404829848,1770604244399,-500.0,0.00044356,120]
[404829849,1770604244409,-500.0,0.00044356,120]
[404829850,1770604244419,-512.59413257,0.00044356,120]
[404829851,1770604244432,-500.0,0.00044356,120]
[404829852,1770604244442,-500.0,0.00044356,120]
[404829853,1770604244452,-500.0,0.00044356,120]
[404829854,1770604244463,-500.0,0.00044356,120]
[404829855,1770604244472,-500.0,0.00044356,120]
[404829856,1770604244482,-500.0,0.00044356,120]
[404829857,1770604244493,-500.0,0.00044356,120]
[404829858,1770604244503,-500.0,0.00044356,120]
[404829859,1770604244513,-500.0,0.00044356,120]
[404829860,1770604244523,-209.52609487,0.00044356,120]
[404829861,1770604244533,-500.0,0.00044356,120]
[404829862,1770604244543,-500.0,0.00044356,30]
[404829863,1770604244553,-500.0,0.00044356,120]
[404829864,1770604244563,-500.0,0.00044356,120]
[404829865,1770604244572,-500.0,0.00044356,120]
[404829866,1770604244582,-572.0771123,0.00044356,120]
[404829867,1770604244592,-500.0,0.00044356,120]
[404829868,1770604244602,-500.0,0.00044356,120]
[404829869,1770604244612,-509.69674492,0.00044356,120]
[404829870,1770604244622,-500.0,0.00044356,120]
[404829871,1770604244632,-500.0,0.00044356,120]
[404829872,1770604244641,-500.0,0.00044356,120]
[404829873,1770604244651,-500.0,0.00044356,120]
[404829874,1770604244660,-500.0,0.00044356,120]
[404829875,1770604244670,-500.0,0.00044356,120]
[404829876,1770604244679,-500.0,0.00044356,120]
[404829877,1770604244690,-500.0,0.00044356,120]
[404829878,1770604244699,-500.0,0.00044356,120]
[404829879,1770604244710,-500.0,0.00044356,120]
[404829880,1770604244719,-500.0,0.00044356,120]
[404829881,1770604244729,-500.0,0.00044356,120]
[404829882,1770604244739,-499.57871984,0.00044356,120]
[404829883,1770604244748,-500.0,0.00044356,120]
[404829884,1770604244758,-500.0,0.00044356,120]
[404829885,1770604244768,-500.0,0.00044356,120]
[404829886,1770604244780,-500.0,0.00044356,120]
[404829887,1770604244789,-500.0,0.00044356,120]
[404829888,1770604244799,-500.0,0.00044356,120]
[404829889,1770604244809,-500.0,0.00044356,120]
[404829890,1770604244820,-500.0,0.00044356,120]
[404829891,1770604244836,-240.35885775,0.00044356,120]
[404829892,1770604244846,-500.0,0.00044356,120]
[404829893,1770604244855,-500.0,0.00044356,120]
[404829894,1770604244866,-500.0,0.00044356,120]
[404829895,1770604244876,-500.0,0.00044356,120]
[404829896,1770604244886,-500.0,0.00044356,120]
[404829897,1770604244895,-500.0,0.00044356,120]
[404829898,1770604244906,-500.0,0.00044356,120]
[404829899,1770604244917,-500.0,0.00044356,120]
[404829900,1770604244927,-500.0,0.00044356,120]
[404829901,1770604244936,-565.17220773,0.00044356,120]
[404829902,1770604244948,-504.57003525,0.00044356,120]
[404829903,1770604244958,-500.0,0.00044356,120]
[404829904,1770604244968,-500.0,0.00044356,120]
[404829905,1770604244978,-500.0,0.00044356,120]
[404829906,1770604244989,-500.0,0.00044356,120]
[404829907,1770604244999,-500.0,0.00044356,120]
[404829908,1770604245009,-500.0,0.00044356,120]
[404829909,1770604245019,-569.54047467,0.00044356,120]
[404829910,1770604245029,-500.0,0.00044356,120]
[404829911,1770604245039,-500.0,0.00044356,120]
[404829912,1770604245049,-500.0,0.00044356,120]
[404829913,1770604245059,-500.0,0.00044356,120]
[404829914,1770604245069,-500.0,0.00044356,120]
[404829915,1770604245079,-500.0,0.00044356,120]
[404829916,1770604245089,-500.0,0.00044356,120]
[404829917,1770604245098,-500.0,0.00044356,120]
[404829918,1770604245108,-500.0,0.00044356,120]
[404829919,1770604245118,-500.0,0.00044356,120]
[404829920,1770604245128,-500.0,0.00044356,120]
[404829921,1770604245138,-500.0,0.00044356,120]
[404829922,1770604245380,-500.0,0.00044356,120]
[404829923,1770604245396,-528.66230993,0.00044356,120]
[404829924,1770604245406,-500.0,0.00044356,120]
[404829925,1770604245415,-500.0,0.00044356,120]
[404829926,1770604245428,-220.34,0.00044356,120]
[404829927,1770604245438,-516.12985326,0.00044356,120]
[404829928,1770604245447,-500.0,0.00044356,120]
[404829929,1770604245459,-178.80719717,0.00044356,120]
[404829930,1770604245469,-500.0,0.00044356,120]
[404829931,1770604245479,-500.0,0.00044356,120]
[404829932,1770604245488,-500.0,0.00044356,120]
[404829933,1770604245500,-500.0,0.00044356,120]
[404829934,1770604245510,-500.0,0.00044356,120]
[404829935,1770604245519,-152.80971759,0.00044356,120]
[404829936,1770604245529,-500.0,0.00044356,120]
[404829937,1770604245538,-500.0,0.00044356,120]
[404829938,1770604245547,-500.0,0.00044356,120]
[404829939,1770604245557,-500.0,0.00044356,120]
[404829940,1770604245566,-500.0,0.00044356,120]
[404829941,1770604245575,-500.0,0.00044356,120]
[404829942,1770604245585,-500.0,0.00044356,120]
[404829943,1770604245594,-500.0,0.00044356,120]
[404829944,1770604245606,-532.54495413,0.00044356,120]
[404829945,1770604245619,-290.65357225,0.00044356,120]
[404829946,1770604245628,-566.85846902,0.00044356,120]
[404829947,1770604245637,-500.0,0.00044356,120]
[404829948,1770604245647,-500.0,0.00044356,120]
[404829949,1770604245656,-561.77460872,0.00044356,120]
[404829950,1770604245666,-500.0,0.00044356,120]
[404829951,1770604245675,-248.74845382,0.00044356,120]
[404829952,1770604245684,-500.0,0.00044356,120]
[404829953,1770604245693,-500.0,0.00044356,120]
[404829954,1770604245703,-500.0,0.00044356,120]
[404829955,1770604245713,-534.28136763,0.00044356,120]
[404829956,1770604245723,-500.0,0.00044356,120]
[404829957,1770604245732,-500.0,0.00044356,120]
[404829958,1770604245742,-500.0,0.00044356,120]
[404829959,1770604245752,-500.0,0.00044356,120]
[404829960,1770604245761,-500.0,0.00044356,120]
[404829961,1770604245773,-500.0,0.00044356,120]
[404829962,1770604245784,-500.0,0.00044356,120]
[404829963,1770604245794,-500.0,0.00044356,120]
[404829964,1770604245803,-248.85484178,0.00044356,120]
[404829965,1770604245812,-500.0,0.00044356,120]
[404829966,1770604245822,-500.0,0.00044356,120]
[404829967,1770604245833,-500.0,0.00044356,120]
[404829968,1770604245842,-500.0,0.00044356,120]
[404829970,1770604245853,-500.0,0.00044356,120]
[404829971,1770604245863,-500.0,0.00044356,120]
[404829972,1770604245873,-500.0,0.00044356,120]
[404829973,1770604245884,-500.0,0.00044356,120]
[404829974,1770604245894,-500.0,0.00044356,120]
[404829975,1770604245904,-583.64123887,0.00044356,120]
[404829976,1770604245913,-555.68103513,0.00044356,120]
[404829977,1770604245923,-500.0,0.00044356,120]
[404829978,1770604245933,-500.0,0.00044356,120]
[404829979,1770604245944,-500.0,0.00044356,120]
[404829980,1770604245954,-500.0,0.00044356,120]
[404829981,1770604245965,-500.0,0.00044356,120]
[404829982,1770604245974,-500.0,0.00044356,120]